Cogmind - Beta 15 @@@ ROGUE MODE // 2025.07.27 @ 22:40:10 Player: Skysub Result: Destroyed by L-61 Swordsman with Power Sword Performance ------------- Evolutions (6) 3000 Regions Visited (22) 4400 Robots Destroyed (419) 2095 Value Destroyed (19226) 19226 Prototype IDs (29) 580 Alien Tech Used (0) 0 Bonus (9075) 9075 TOTAL SCORE: 38376 Bonus ------- High Alert Combat Kills 5104 Follower Combat Kills 2760 Entered Garrisons 1000 Used RIF Installer 2500 Network Hubs Disabled 200 Built Enhanced Grunts 300 A7 Reached Mainframe 300 Met R17 at Cetus 500 Friendly Fire -3589 Cogmind --------- Core Integrity 0/1150 Matter 300/300 Energy 58/100 System Corruption 15% Temperature Cool (0) Movement Core (250) Ox4 Location -4/Armory Parts ------- > --- POWER (1) -------- (None) > --- PROPULSION (4) --- (None) > --- UTILITY (9) ------ Enhanced Optical Array Experimental Melee Analysis Suite Advanced Transmission Jammer Propulsion Shielding Graphene Brace Relay Coupler [Grunt] (20) > --- WEAPON (5) ------- Thunder Hammer Vibroblade Vibroblade > --- INVENTORY (5) ---- Cooled Field Propulsion Drive Heavy Rocket Launcher Improved Remote Datajack Plasma Cutter Segregator Peak State ------------ > --- POWER ------------ Quantum Reactor > --- PROPULSION ------- Centrium Heavy Treads Centrium Heavy Treads > --- UTILITY ---------- Advanced Cooling System High-capacity Storage Unit Enhanced Optical Array Improved Targeting Computer Advanced Targeting Computer Centrium Medium Armor Plating Centrium Medium Armor Plating Relay Coupler [Grunt] High-powered Tractor Beam > --- WEAPON ----------- Gauss Rifle Gauss Rifle KE Penetrator KE Penetrator Advanced KE Penetrator > --- INVENTORY -------- Quantum Reactor Centrium Heavy Treads Weapon Cycler Improved Medium Armor Plating Centrium Medium Armor Plating Powered Armor Powered Armor Powered Armor Hacking Suite Relay Coupler [NC] Relay Coupler [Swarmer] Relay Coupler [Sentry] Relay Coupler [Specialist] Improved Remote Datajack Plasma Cutter Great Maul [Rating: 122] Favorites ----------- Power Quantum Reactor Engine Ion Engine Power Core Light Nuclear Core Reactor Quantum Reactor Propulsion Light Treads Treads Light Treads Leg Advanced Myomer Leg Wheel Compact Wheel Flight Unit Cesium-ion Thruster Utility High-capacity Storage Unit Device Improved Cooling System Storage High-capacity Storage Unit Processor Improved Targeting Computer Hackware Relay Coupler [Sentry] Protection Centrium Medium Armor Plating Weapon Precision Assault Rifle Energy Gun Small Laser Ballistic Gun Precision Assault Rifle Launcher Rocket Launcher Special Weapon Remote Datajack Impact Weapon Mace Slashing Weapon Vibroblade Piercing Weapon Force Lance Build | -11 -10 -10 -9 -9 -9 -8 -8 -7 -7 -7 -7 -6 -6 -6 -6 -6 -6 -6 -5 -5 -4 -4 ------- Run | Yrd Mat Min Mat Sto Gar Mat Gar Fac Gar Fac Gar Fac Was Fac Ext Cet Arc Hub Fac Gar Fac Arm Slots Evolved 12 | . . . 2 . . 2 . 2 . . . 2 . . . . . . 2 . 2 . Power . | . . . . . . . . . . . . . . . . . . . . . . . Propulsion 2 | . . . . . . 1 . 1 . . . . . . . . . . . . . . Utility 7 | . . . 1 . . 1 . . . . . 2 . . . . . . 2 . 1 . Weapon 3 | . . . 1 . . . . 1 . . . . . . . . . . . . 1 . Parts Attached 212 | 7 5 1 17 4 4 13 4 11 11 1 12 1 9 12 10 9 2 5 6 4 10 54 Power 21 | 1 . 1 1 2 . 1 . . 2 1 1 . 1 . 2 1 . . . . 1 6 Engine 8 | 1 . 1 . 2 . 1 . . 1 1 . . . . 1 . . . . . . . Core 5 | . . . 1 . . . . . 1 . 1 . . . . . . . . . . 2 Reactor 8 | . . . . . . . . . . . . . 1 . 1 1 . . . . 1 4 Propulsion 54 | 2 2 . 4 . 1 6 1 3 5 . 5 . 3 2 2 2 . . . 1 1 14 Treads 35 | 2 . . 3 . 1 4 1 1 4 . 5 . 3 2 2 2 . . . 1 1 3 Leg 10 | . . . . . . . . . 1 . . . . . . . . . . . . 9 Wheel 6 | . 2 . 1 . . 1 . 2 . . . . . . . . . . . . . . Hover . | . . . . . . . . . . . . . . . . . . . . . . . Flight 3 | . . . . . . 1 . . . . . . . . . . . . . . . 2 Utility 79 | 2 2 . 3 . 1 2 3 4 4 . 4 1 2 6 4 4 . 4 5 1 5 22 Device 20 | 1 . . . . . 1 . . . . 2 1 . 1 . . . 1 4 . . 9 Storage 4 | 1 2 . . . . . . . . . . . . . . . . . . . . 1 Processor 13 | . . . 2 . . . . . . . 1 . . 2 . 1 . 1 1 . . 5 Hackware 9 | . . . . . . . . . . . . . . 1 1 . . 2 . 1 2 2 Protection 33 | . . . 1 . 1 1 3 4 4 . 1 . 2 2 3 3 . . . . 3 5 Artifact . | . . . . . . . . . . . . . . . . . . . . . . . Weapon 58 | 2 1 . 9 2 2 4 . 4 . . 2 . 3 4 2 2 2 1 1 2 3 12 Energy Gun 5 | 1 1 . 1 . . . . . . . . . . . . . . . . . . 2 Energy Cannon . | . . . . . . . . . . . . . . . . . . . . . . . Ballistic Gun 40 | 1 . . 8 1 1 3 . 4 . . 1 . 3 2 2 2 2 1 1 1 3 4 Ballistic Cannon . | . . . . . . . . . . . . . . . . . . . . . . . Launcher 1 | . . . . . . . . . . . . . . 1 . . . . . . . . Special Weapon 3 | . . . . 1 . . . . . . . . . 1 . . . . . 1 . . Impact Weapon 4 | . . . . . 1 1 . . . . 1 . . . . . . . . . . 1 Slashing Weapon 4 | . . . . . . . . . . . . . . . . . . . . . . 4 Piercing Weapon 1 | . . . . . . . . . . . . . . . . . . . . . . 1 Special Melee Weapon . | . . . . . . . . . . . . . . . . . . . . . . . Unidentified Prototypes 25 | . . . 1 2 . 1 . 1 . . . . . . . . . . 1 . 1 18 Corrupted Parts 1 | . . . . . . . . . . . 1 . . . . . . . . . . . System Corruption 1 | . . . . . . . . . . . 1 . . . . . . . . . . . Parts Lost 93 | . 6 . 2 . 4 6 1 1 2 2 2 . . 9 4 2 . . 5 2 12 33 Power 11 | . 1 . 1 . . . . . 1 1 . . . . 1 . . . . . 1 5 Propulsion 26 | . 3 . 1 . 2 2 1 1 1 . 1 . . 2 . 1 . . 1 . 1 9 Utility 28 | . 1 . . . 1 2 . . . . 1 . . 4 . . . . 2 1 5 11 Weapon 28 | . 1 . . . 1 2 . . . 1 . . . 3 3 1 . . 2 1 5 8 Highest Loss Streak 9 | . 2 . 1 . 1 2 1 1 1 2 1 . . 5 2 2 . . 3 1 9 9 To Critical Strikes 2 | . . . . . . . . . . 1 . . . . . . . . 1 . . . Average Backups 15 | 3 6 5 18 20 18 19 19 19 19 19 19 18 19 16 18 18 18 16 17 17 15 4 Power . | . 1 . . . . . 1 1 . . . . . . . 1 1 1 1 1 . . Propulsion 1 | 1 1 . 3 3 2 1 . . . 1 . 1 1 . . 1 2 2 2 1 . . Utility 8 | . 1 3 6 8 7 9 10 12 13 14 13 11 11 10 11 10 10 8 8 11 10 1 Weapon 3 | 1 2 2 7 8 7 6 4 4 3 2 3 4 4 3 4 3 3 3 3 2 1 . Tool/Special . | . . . . . . . . . . . . . . . . . . . . . . . Unused Backups 49 | . . . 8 1 1 3 1 7 4 1 2 . 1 1 1 4 . . 1 . 8 5 Power 1 | . . . . . . . . . . . . . . . . 1 . . . . . . Propulsion 7 | . . . 2 . . . . . . . . . . . 1 1 . . . . 2 1 Utility 26 | . . . . . 1 1 1 5 3 1 1 . 1 1 . 1 . . 1 . 6 3 Weapon 14 | . . . 6 1 . 2 . 1 1 . 1 . . . . 1 . . . . . 1 Tool/Special 1 | . . . . . . . . 1 . . . . . . . . . . . . . . Average Slot Usage (%) 90 | . 86 70 93 100 99 96 99 91 98 99 99 97 88 85 88 85 86 86 84 84 83 80 Engine 4 | . 12 13 8 1 11 9 9 7 6 6 6 . . . 2 . . . . . . . Reactor 2 | . . . . . . . . . . . . . 5 6 3 6 6 6 4 5 4 4 Treads 14 | . 20 . 9 11 10 17 17 15 27 30 29 26 15 12 16 13 13 13 10 10 10 6 Wheel 3 | . 4 14 12 11 11 8 9 6 . . . . . . . . . . . . . . Device 4 | . 6 . . . . 6 . . . . 3 5 6 6 6 6 6 8 16 8 9 6 Storage 7 | . 15 14 11 11 11 9 9 7 7 7 7 6 6 6 6 6 6 6 5 5 4 . Processor 9 | . . . 10 11 11 9 9 7 7 7 9 13 13 10 6 6 6 8 12 17 15 14 Hackware 2 | . . . . . . . . . . . . . . 2 6 6 6 7 2 . 8 15 Protection 9 | . . . 6 11 11 8 18 15 15 15 8 11 13 12 13 12 13 7 5 10 5 6 Energy Gun 2 | . 17 28 2 . . . . . . . . . . . . . . . . . . . Ballistic Gun 22 | . 9 . 29 26 22 26 21 29 25 29 25 26 25 24 23 25 26 21 21 18 22 11 Impact Weapon 1 | . . . . . 10 . 5 . 4 . 4 . . . . . . . . 2 . 1 Peak Build Rating 122 | 7 7 5 24 24 24 32 31 49 51 48 47 51 74 69 63 104 110 109 120 121 122 117 Average Rating 55 | 5 6 4 17 23 22 28 29 43 45 47 44 50 67 62 58 92 107 105 113 114 109 97 On Entrance 51 | . 7 4 5 24 23 23 29 27 49 48 46 44 51 66 60 58 104 109 103 92 115 86 Naked Turns . | . . . . . . . . . . . . . . . . . . . . . . . Heaviest Build 102 | 13 67 47 59 60 64 68 66 79 80 81 82 72 89 85 83 94 96 96 100 102 101 61 Greatest Support 160 | 40 40 16 26 16 23 42 45 63 83 80 80 80 140 140 113 160 160 160 160 160 160 160 Greatest Overweight (x) 22 | 3 4 2 3 3 6 6 6 22 4 1 1 . . 1 . 1 . . 1 1 . 4 Average Overweight (x) 1 | . 1 2 2 3 5 4 3 2 . . . . . . . . . . . . . . Largest Inventory Capacity 20 | 8 20 20 20 20 20 20 20 20 20 20 20 20 20 20 20 20 20 20 20 20 20 5 Average Capacity 18 | 7 13 20 20 20 20 20 20 20 20 20 20 20 20 20 20 20 20 20 20 20 18 5 Most Carried 20 | 5 9 6 20 20 20 20 20 20 20 20 20 20 20 20 20 20 20 20 20 20 19 5 Average Carried 16 | 3 6 5 18 19 18 19 19 19 19 19 19 18 19 17 18 19 20 18 19 19 16 4 Final Capacity 20 | 8 20 20 20 20 20 20 20 20 20 20 20 20 20 20 20 20 20 20 20 20 5 5 Final Carried 20 | 5 6 6 20 20 20 19 19 20 20 20 20 18 20 16 20 20 20 17 19 19 4 5 Class Distribution -------------------- 33% | Bothacker-Tank 17% | Mutant 15% | Scavenger-Tank 9% | Gunner 7% | Tank 3% | Commander-Tank 3% | Scavenger-Mutant 3% | Bothacker-Gunner Dominant Class ---------------- Mutant | -10/Materials Mutant | -10/Mines Gunner | -9/Materials Gunner | -9/Storage Mutant | -9/Garrison Tank | -8/Materials Mutant | -8/Garrison Bothacker-Tank | -7/Factory Bothacker-Tank | -7/Garrison Bothacker-Tank | -7/Factory Bothacker-Tank | -7/Garrison Bothacker-Gunner | -6/Factory Bothacker-Tank | -6/Waste Bothacker-Tank | -6/Factory Bothacker-Tank | -6/Extension Commander-Tank | -6/Cetus Scavenger-Tank | -6/Archives Scavenger-Tank | -6/Hub_04(d) Scavenger-Tank | -5/Factory Bothacker-Tank | -5/Garrison Bothacker-Tank | -4/Factory Scavenger-Tank | -4/Armory Resources | -11 -10 -10 -9 -9 -9 -8 -8 -7 -7 -7 -7 -6 -6 -6 -6 -6 -6 -6 -5 -5 -4 -4 ----------- Run | Yrd Mat Min Mat Sto Gar Mat Gar Fac Gar Fac Gar Fac Was Fac Ext Cet Arc Hub Fac Gar Fac Arm Matter Collected 12440 | 311 68 10 911 147 395 1031 264 456 741 227 789 . 245 1072 734 536 . 495 1260 464 390 1894 Remotely 1034 | . . . . . . . . . . . . . . 256 . . . 391 . . 387 . Salvage Created 19618 | 247 492 112 1192 345 241 1401 448 594 856 341 923 . 589 1921 1080 363 131 402 2707 654 744 3835 Parts 952 | 23 34 7 90 29 22 73 21 41 44 11 67 . 4 78 48 15 4 16 101 24 38 162 Haulers Intercepted 6 | . . . 4 . . 1 . . . . . . . 1 . . . . . . . . Recyclers Shooed 12 | . 2 . . . . 1 . . . . . . . 6 3 . . . . . . . Parts Field Recycled . | . . . . . . . . . . . . . . . . . . . . . . . Retrieved Matter . | . . . . . . . . . . . . . . . . . . . . . . . Parts Self-Destructed . | . . . . . . . . . . . . . . . . . . . . . . . Prevented . | . . . . . . . . . . . . . . . . . . . . . . . Kills | -11 -10 -10 -9 -9 -9 -8 -8 -7 -7 -7 -7 -6 -6 -6 -6 -6 -6 -6 -5 -5 -4 -4 ------- Run | Yrd Mat Min Mat Sto Gar Mat Gar Fac Gar Fac Gar Fac Was Fac Ext Cet Arc Hub Fac Gar Fac Arm Combat Hostiles Destroyed 329 | . 11 2 28 9 10 25 9 14 21 4 24 . . 22 16 4 1 3 44 11 9 62 Melee 25 | . . . . . . . . . . . . . . . . . . . . . . 25 Guns 292 | . 11 2 28 9 10 25 9 14 21 4 24 . . 20 13 4 1 3 41 11 6 36 AOE 12 | . . . . . . . . . . . . . . 2 3 . . . 3 . 3 1 Classes Destroyed 22 | 3 4 . 5 . 1 2 . . . . 1 . . 1 1 . . 1 1 . . 2 Worker 15 | 2 . 1 1 . . . . 2 . 1 . . . 5 1 . . . 2 . . . Builder 10 | . 1 . 1 1 . 3 . . . . . . . . . . . 2 1 . 1 . Tunneler 9 | 7 . . 1 . . 1 . . . . . . . . . . . . . . . . Hauler 6 | . . . 4 . . 1 . . . . . . . 1 . . . . . . . . Recycler 19 | 1 3 . . . . 3 . 1 . 1 . . . 5 1 . . 1 2 . 1 . Mechanic 2 | . . . 1 . . . . . . . . . . . . . . . . . 1 . Operator 7 | . . . 1 1 . 1 . . . . . . . . 1 . . . 2 . . 1 Watcher 19 | . 1 . 2 1 . 2 . 1 . . . . . 1 2 2 . 3 2 . 1 1 Swarmer 69 | . 6 . 7 3 3 2 . 9 11 . 7 . . 3 3 . . . 2 . 2 11 Cutter 3 | . . . . . . . . . . . 3 . . . . . . . . . . . Saboteur 4 | . . . . . . . . . . . . . . . . . . . . . . 4 Grunt 157 | . 5 2 12 4 6 17 8 3 5 3 7 . . 12 10 3 . . 27 9 5 19 Brawler 9 | . . . . . . 1 . . 2 1 . . . . . . . . 3 . . 2 Duelist 9 | . . . 2 . . . . . . . . . . . . . . . 3 . . 4 Protector 4 | . . . . . . . . . . . . . . . . . . . 2 . . 2 Sentry 30 | . . . 7 2 . 4 1 . 3 . 3 . . 2 2 . 1 1 1 . . 3 Demolisher 1 | . . . . . . . . . . . . . . . . . . . . . . 1 Specialist 11 | . . . . . . . . . . . . . . . . . . 1 . . . 10 Hunter 6 | . . . . . . 1 . . . . . . . . . . . . 1 2 . 2 Programmer 21 | . . . . . 1 . . 2 . . 4 . . 3 . . . . 5 . 2 4 Heavy 4 | . . . . . . . . . . . . . . 2 . . . 1 . . 1 . Behemoth 1 | . . . . . . . . . . . . . . . 1 . . . . . . . Cetus Guard 1 | . . . . . . . . . . . . . . . . 1 . . . . . . Butcher 1 | . . . . . . . . . . . . . . . . . 1 . . . . . Best Kill Streak 11 | 4 5 2 6 7 3 7 4 4 8 2 6 . . 7 4 3 1 5 8 8 11 10 Combat Bots Only 10 | . 4 2 5 4 3 5 4 4 8 2 6 . . 5 3 3 1 1 6 8 6 10 Max Kills in Single Turn 7 | 1 3 1 2 1 3 2 1 2 2 1 2 . . 5 4 1 1 2 2 2 7 2 Gunslinging 2 | . . . . . 2 1 . 1 1 . 1 . . . 1 . . . 1 1 . 1 Exploded 3 | . . . . . . . . . . . . . . 2 3 . . . 1 . 3 1 Melee 2 | . . . . . . . . . . . . . . . . . . . . . . 2 Uniques/NPCs Destroyed 1 | . . . . . . . . . . . . . . . . 1 . . . . . . A7 (-6/Cetus) Combat | -11 -10 -10 -9 -9 -9 -8 -8 -7 -7 -7 -7 -6 -6 -6 -6 -6 -6 -6 -5 -5 -4 -4 -------- Run | Yrd Mat Min Mat Sto Gar Mat Gar Fac Gar Fac Gar Fac Was Fac Ext Cet Arc Hub Fac Gar Fac Arm Hostile Shots Fired 2011 | . 72 9 85 25 41 110 25 26 140 13 160 . . 196 118 18 13 47 141 68 180 524 Missed 583 | . 15 2 13 9 12 30 6 6 40 4 41 . . 33 44 6 5 21 45 17 60 174 Hits 1428 | . 57 7 72 16 29 80 19 20 100 9 119 . . 163 74 12 8 26 96 51 120 350 Melee 47 | . . . 8 . . . . . 1 2 8 . . . . . . . 8 . . 20 Projectile 1381 | . 57 7 64 16 29 80 19 20 99 7 111 . . 163 74 12 8 26 88 51 120 330 AOE 6 | . . . . . . . . . . . . . . . . . . . . . 1 5 Critical Strikes 55 | . . . 5 . 2 2 2 . 3 1 5 . . 6 1 4 . 2 5 2 5 10 Actively Blocked 6 | . . . . . . . . . . . . . . . . . . . . . . 6 Part Disruptions 6 | . . . . . . . . . . . . . . . . . . . . . . 6 Damage Taken 22904 | . 701 110 1009 183 462 961 404 302 1337 180 1308 . . 2475 1093 353 194 455 1561 1061 2970 5785 Core 2572 | . 142 50 234 . 75 87 90 . 126 . 175 . . 152 50 25 44 43 87 22 175 995 Absorbed by Shields 1499 | . . . . . . 176 . . . . 246 . . . 173 95 . . 474 . . 335 Reduced by Siege Mode 350 | . . . . . . . . . . . . . . 141 . . . . 20 42 46 101 Redirected to Shielding 295 | . . . . . . . . . . . . . . . . . . . . . . 295 Regen/Repaired (Parts) 97 | . . . . . . . . . . . . . . . . . . . 97 . . . Core Remaining (%) 60 | 100 . 23 . . 22 . 67 . . . 57 . . . . . . 63 . 89 . . Volleys Fired 777 | 51 45 7 70 15 21 76 15 22 38 12 42 . 5 80 35 29 6 25 71 19 18 75 Largest 5 | 2 2 2 3 3 3 3 3 4 4 4 4 . 4 4 4 4 4 4 4 4 5 5 Hottest 157 | 60 80 80 120 73 75 75 71 112 112 112 107 . 107 108 111 116 126 129 136 131 157 150 Shots Fired 2426 | 95 86 14 205 43 49 218 45 84 141 49 142 . 20 264 121 109 24 68 267 69 72 241 Gun 2399 | 95 86 14 205 43 49 218 45 84 141 49 141 . 20 256 118 108 24 63 259 68 72 241 Cannon . | . . . . . . . . . . . . . . . . . . . . . . . Launcher 10 | . . . . . . . . . . . . . . 1 1 . . . 8 . . . Special 17 | . . . . . . . . . . . 1 . . 7 2 1 . 5 . 1 . . Kinetic 2257 | 51 28 . 181 43 49 218 45 84 141 49 141 . 20 256 118 108 24 63 259 68 72 239 Thermal 143 | 44 58 14 24 . . . . . . . 1 . . . . . . . . . . 2 Explosive 10 | . . . . . . . . . . . . . . 1 1 . . . 8 . . . Electromagnetic . | . . . . . . . . . . . . . . . . . . . . . . . Robot Hit Streak 34 | 7 15 7 10 4 5 12 19 12 31 34 16 . 15 30 22 10 7 8 34 12 16 21 Robot Miss Streak 10 | 5 3 1 5 3 6 10 1 3 3 1 4 . 2 7 4 3 3 4 4 2 3 4 Penetration Max 2 | . . . . . . . . . . . . . . . 2 1 . 1 1 1 1 2 Secondary Targets 84 | . 2 . 1 3 4 7 3 2 10 . 10 . . 7 5 1 . 1 11 5 1 11 Max Gunslinging Chain 2 | . 1 . 1 1 2 1 1 1 1 . 2 . . 1 1 1 . 1 2 2 1 1 Shots Hit Robots 1768 | 58 55 10 130 24 33 148 36 45 97 38 101 . 17 199 95 75 14 40 178 57 48 270 Core Hits 934 | 17 22 6 70 15 15 79 22 27 42 11 66 . 9 135 67 30 6 18 114 24 23 116 Critical Kills 35 | . . . . . . . . . . . . . . 6 2 3 1 . 10 4 . 9 Critical Parts Destroyed 41 | . . . 1 . . 1 . 1 1 . . . . 6 1 1 1 4 11 5 . 8 Critical Strikes 93 | . . . 1 . . 1 . 1 1 . . . 1 12 3 4 2 5 21 9 . 32 Destroy 79 | . . . 1 . . . . 1 1 . . . 1 12 3 4 2 5 21 9 . 19 Smash 2 | . . . . . . 1 . . . . . . . . . . . . . . . 1 Sever 12 | . . . . . . . . . . . . . . . . . . . . . . 12 Melee Attacks 314 | . . . . . 59 2 43 . 34 . 39 . . . . . . . . 12 . 125 Thermal 1 | . . . . . . . . . . . . . . . . . . . . . . 1 Impact 199 | . . . . . 59 2 43 . 34 . 39 . . . . . . . . 12 . 10 Slashing 112 | . . . . . . . . . . . . . . . . . . . . . . 112 Piercing 2 | . . . . . . . . . . . . . . . . . . . . . . 2 Sneak Attacks 2 | . . . . . . 1 . . . . . . . . . . . . . . . 1 Combat Hostiles . | . . . . . . . . . . . . . . . . . . . . . . . Follow-up Attacks 33 | . . . . . . . . . . . . . . . . . . . . . . 33 Damage Inflicted 43815 | 541 798 128 1894 339 587 2670 535 994 1836 747 1954 . 378 3894 2200 1898 342 1154 7645 1646 2079 9556 Guns 35854 | 541 595 109 1890 339 555 2584 535 994 1836 747 1954 . 378 3569 1939 1898 342 1143 6153 1646 1241 4866 Cannons . | . . . . . . . . . . . . . . . . . . . . . . . Explosions 3110 | . 201 . . . . . . . . . . . . 290 218 . . . 1488 . 826 87 Melee 4706 | . . . . . 32 71 . . . . . . . . . . . . . . . 4603 Ramming 145 | . 2 19 4 . . 15 . . . . . . . 35 43 . . 11 4 . 12 . Kinetic 34835 | 272 103 . 1757 339 555 2584 535 994 1836 747 1954 . 378 3569 1939 1898 342 1143 6153 1646 1241 4850 Thermal 1903 | 269 492 109 133 . . . . . . . . . . . . . . . 229 . 655 16 Explosive 2226 | . 201 . . . . . . . . . . . . 290 218 . . . 1259 . 171 87 Electromagnetic . | . . . . . . . . . . . . . . . . . . . . . . . Impact 337 | . . . . . 32 71 . . . . . . . . . . . . . . . 234 Slashing 4369 | . . . . . . . . . . . . . . . . . . . . . . 4369 Piercing . | . . . . . . . . . . . . . . . . . . . . . . . Highest Corruption 15 | . . . 1 1 4 . 1 . . 7 10 . . 2 2 3 3 3 8 8 . 15 Average Corruption 3 | . . . 1 1 3 . 1 . . 6 8 . . 1 2 2 3 3 3 8 . 6 Corruption Purged . | . . . . . . . . . . . . . . . . . . . . . . . Corruption Blocked . | . . . . . . . . . . . . . . . . . . . . . . . Effects 221 | . . . 6 2 18 . 1 . . 3 40 . . 9 15 16 1 8 29 23 . 50 Message Errors 48 | . . . 1 2 4 . . . . . 6 . . 4 1 6 . 1 7 3 . 13 Matter Fused 53 | . . . . . 6 . 1 . . . 12 . . 1 2 4 . 2 5 10 . 10 Heat Flow Errors 17 | . . . . . . . . . . . 2 . . 1 3 1 1 1 . 4 . 4 Energy Discharges 25 | . . . 3 . 1 . . . . . 6 . . . 4 . . 1 5 . . 5 Parts Rejected 5 | . . . 1 . . . . . . . . . . . . . . . . 1 . 3 Parts Fused 4 | . . . . . . . . . . 1 . . . . . . . . 1 1 . 1 Data Loss (minor) 28 | . . . . . 4 . . . . . 6 . . . 2 2 . 2 4 2 . 6 Data Loss (major) 9 | . . . 1 . . . . . . . 1 . . 1 . 1 . . 2 . . 3 Misfires 9 | . . . . . 1 . . . . 2 . . . . 2 . . . 2 1 . 1 Alerts 9 | . . . . . . . . . . . 2 . . 2 . 1 . 1 1 . . 2 Weapon Failures 14 | . . . . . 2 . . . . . 5 . . . 1 1 . . 2 1 . 2 Overload Shots . | . . . . . . . . . . . . . . . . . . . . . . . Overflow Damage 590 | . 94 . . . . 71 . . . . . . . . 14 . . . 1 . 180 230 Projectiles . | . . . . . . . . . . . . . . . . . . . . . . . Explosions 275 | . 94 . . . . . . . . . . . . . . . . . 1 . 180 . Melee 315 | . . . . . . 71 . . . . . . . . 14 . . . . . . 230 Knockbacks 1 | . . . . . . . . . . . . . . . . . . . . . . 1 Impact 1 | . . . . . . . . . . . . . . . . . . . . . . 1 Kinetic . | . . . . . . . . . . . . . . . . . . . . . . . Secondary . | . . . . . . . . . . . . . . . . . . . . . . . Self-Inflicted Damage 569 | . 171 9 . . . . . . . . . . . . . . . . 54 . 305 30 Shots 10 | . 2 . . . . . . . . . . . . . . . . . 3 . 4 1 Rammed 15 | . 1 1 1 . . 1 . . . . . . . 3 2 . . 1 1 . 4 . Targets Rammed 15 | . 1 1 1 . . 1 . . . . . . . 3 2 . . 1 1 . 4 . Kicked . | . . . . . . . . . . . . . . . . . . . . . . . Crushed . | . . . . . . . . . . . . . . . . . . . . . . . Highest Temperature 363 | 80 228 183 153 140 18 186 168 122 266 278 363 . . 312 171 63 216 225 116 233 24 173 Average Temperature 60 | 28 56 94 23 50 8 27 65 46 76 104 103 . . 158 69 38 76 129 47 53 15 45 Received Heat Transfer 5275 | . 147 57 297 75 123 441 198 27 401 63 219 . . 654 257 13 27 84 444 306 422 1020 Effects 6 | . 1 . . . . . . . 2 . 2 . . 1 . . . . . . . . Energy Bleed 3 | . 1 . . . . . . . . . 1 . . 1 . . . . . . . . Interference 3 | . . . . . . . . . 2 . 1 . . . . . . . . . . . Siege Activations 11 | . . . . . . . . . . . . . . 3 1 . . . 2 2 1 2 Total Turns 257 | . . . . . . . . . . . . . . 99 7 . . . 36 34 11 70 Longest Duration 85 | . . . . . . . . . . . . . . 85 7 . . . 29 22 11 43 Martial Activations . | . . . . . . . . . . . . . . . . . . . . . . . Shielding Activations . | . . . . . . . . . . . . . . . . . . . . . . . Robots Disrupted . | . . . . . . . . . . . . . . . . . . . . . . . Combat Hostiles . | . . . . . . . . . . . . . . . . . . . . . . . Robots Corrupted 1 | . . . . . . 1 . . . . . . . . . . . . . . . . Combat Hostiles . | . . . . . . . . . . . . . . . . . . . . . . . Parts Fried 2 | . . . . . . 1 . . . . . . . . . . . . . . . 1 Impact Corruptions 6 | . . . . . . 3 . . . . . . . . 1 . . . . . . 2 Robots Melted . | . . . . . . . . . . . . . . . . . . . . . . . Combat Hostiles . | . . . . . . . . . . . . . . . . . . . . . . . Parts Melted 8 | 1 1 . . . . . . 2 . . . . . . 3 . . . . . . 1 Heat Transferred 2937 | 625 1125 250 300 . . . . . . . . . . . . . . . 150 . 450 37 Parts Sabotaged 12 | . . . . . . . . . . . . . . . . . . . . . . 12 Parts Stolen . | . . . . . . . . . . . . . . . . . . . . . . . Parts Stripped . | . . . . . . . . . . . . . . . . . . . . . . . Power Chain Reactions . | . . . . . . . . . . . . . . . . . . . . . . . Alert | -11 -10 -10 -9 -9 -9 -8 -8 -7 -7 -7 -7 -6 -6 -6 -6 -6 -6 -6 -5 -5 -4 -4 ------- Run | Yrd Mat Min Mat Sto Gar Mat Gar Fac Gar Fac Gar Fac Was Fac Ext Cet Arc Hub Fac Gar Fac Arm Maximum Alert Level 5 | . . . 2 1 2 2 2 1 4 2 3 2 . 1 2 2 1 4 5 5 4 4 Low Security (%) 28 | 100 100 100 65 71 18 . . 5 . . . . 100 57 54 . . 32 . . . . Level 1 23 | . . . 29 28 25 86 18 94 8 . 2 . . 42 26 47 100 18 . . . . Level 2 25 | . . . 4 . 56 13 81 . 46 100 54 100 . . 19 52 . 13 36 . . 30 Level 3 13 | . . . . . . . . . 37 . 43 . . . . . . 34 41 . 70 37 Level 4 8 | . . . . . . . . . 8 . . . . . . . . . 15 85 29 32 Level 5 . | . . . . . . . . . . . . . . . . . . . 5 14 . . High Security . | . . . . . . . . . . . . . . . . . . . . . . . Max Security . | . . . . . . . . . . . . . . . . . . . . . . . Peak Influence 1828 | 10 93 50 432 264 556 505 616 395 1238 649 1070 561 178 315 640 615 371 1113 1828 1672 1410 1534 Initial 1268 | . . . . 177 150 271 313 323 276 649 394 561 178 . 141 352 235 119 509 1268 877 633 Average 482 | 1 26 4 182 174 408 361 471 279 719 580 750 536 54 126 234 419 320 468 912 1460 1020 937 Influence Increases 14748 | 50 406 55 959 277 446 802 313 432 1022 140 736 . . 702 1162 685 176 1387 1867 424 815 1892 Destroy 0b10 Robot/C 7800 | . 220 40 620 180 200 500 180 280 580 80 480 . . 440 580 300 80 460 840 240 220 1280 Destroy 0b10 Robot/NC 465 | 50 25 5 65 15 . 55 . 20 . 10 . . . 60 25 10 . 30 55 . 20 20 Destroy Leader 1312 | . 52 10 176 42 30 136 . 32 30 20 40 . . 114 64 20 . 136 144 20 52 194 Allied During Kill 1591 | . . . 9 . . . . . 27 . 2 . . 3 386 326 80 621 . 10 41 86 Successful Hack 273 | . 18 . 28 7 14 17 . 24 . . 7 . . . 41 17 . . 70 14 16 . Select Force Hacks 200 | . 30 . . . . 60 . . . 30 . . . . . . . 50 30 . . . Disable Machine 870 | . 30 . . 30 . 30 15 15 . . . . . . 30 . 15 45 240 . 300 120 Anti-Garrison Action 700 | . . . . . 150 . 50 . 300 . 100 . . . . . . . . 100 . . Destroy Structure 1042 | . 1 . 1 3 52 4 23 1 70 . 62 . . 10 21 12 1 45 488 40 166 42 Partial Spotted 45 | . 15 . . . . . . . . . . . . 15 . . . . . . . 15 Lose Combat Pursuer 450 | . 15 . 60 . . . 45 60 15 . 45 . . 60 15 . . . . . . 135 Influence Decreases 13237 | 50 404 57 539 465 122 875 180 653 179 815 229 559 511 413 820 727 424 688 1095 564 1193 1675 Entered New Map 6328 | . . 2 . 243 82 285 170 293 119 589 169 509 333 . 148 279 354 222 531 544 795 661 Time Decay 5132 | 50 277 55 479 222 . 530 . 350 . 206 . 50 178 303 452 368 50 206 514 . 238 604 Lost Part 920 | . 50 . 20 . 40 60 10 10 20 20 20 . . 90 40 20 . . 50 20 120 330 Lost Ally 780 | . . . 40 . . . . . 40 . 40 . . 20 180 60 20 260 . . 40 80 Purge Threat 77 | . 77 . . . . . . . . . . . . . . . . . . . . . Squads Dispatched 57 | . 2 . 3 1 . 6 . 1 . 2 . . . 9 2 1 . 9 6 . 5 10 Investigation 16 | . 2 . 1 . . 3 . . . 1 . . . 1 2 1 . 4 1 . . . Extermination 8 | . . . . . . . . 1 . . . . . 3 . . . 1 1 . 1 1 Reinforcement 23 | . . . 2 1 . 3 . . . . . . . 5 . . . 4 1 . 1 6 Assault 8 | . . . . . . . . . . 1 . . . . . . . . 3 . 1 3 Garrison 2 | . . . . . . . . . . . . . . . . . . . . . 2 . Intercept . | . . . . . . . . . . . . . . . . . . . . . . . Searches Triggered . | . . . . . . . . . . . . . . . . . . . . . . . Construction Impeded . | . . . . . . . . . . . . . . . . . . . . . . . Haulers Reinforced 2 | . . . . . . . . . . . . . . 1 . . . . 1 . . . Active Scanning Responses . | . . . . . . . . . . . . . . . . . . . . . . . Cargo Convoy Interrupts . | . . . . . . . . . . . . . . . . . . . . . . . Stealth | -11 -10 -10 -9 -9 -9 -8 -8 -7 -7 -7 -7 -6 -6 -6 -6 -6 -6 -6 -5 -5 -4 -4 --------- Run | Yrd Mat Min Mat Sto Gar Mat Gar Fac Gar Fac Gar Fac Was Fac Ext Cet Arc Hub Fac Gar Fac Arm Distress Signals 31 | . 2 . 3 . . 3 . 1 . . . . . 3 4 2 . 6 1 . 1 5 Communications Jammed . | . . . . . . . . . . . . . . . . . . . . . . . Distress Signals . | . . . . . . . . . . . . . . . . . . . . . . . Times Spotted 521 | . 21 2 44 13 11 41 10 22 30 4 25 . . 38 36 13 4 30 50 13 23 91 Peak Tracking Total 11 | . 6 2 4 5 4 4 6 4 8 2 6 . . 6 7 5 2 6 6 5 10 11 Tactical Retreats 24 | . 1 . 3 . . . 1 4 1 . 2 . . 3 1 . . . . . . 8 Traps | -11 -10 -10 -9 -9 -9 -8 -8 -7 -7 -7 -7 -6 -6 -6 -6 -6 -6 -6 -5 -5 -4 -4 ------- Run | Yrd Mat Min Mat Sto Gar Mat Gar Fac Gar Fac Gar Fac Was Fac Ext Cet Arc Hub Fac Gar Fac Arm Traps Triggered 23 | . 1 . 1 . 5 5 4 1 2 . . 1 . 1 1 . . . . 1 . . Indirectly . | . . . . . . . . . . . . . . . . . . . . . . . Trap Hack Attempts . | . . . . . . . . . . . . . . . . . . . . . . . Triggered . | . . . . . . . . . . . . . . . . . . . . . . . Disarmed . | . . . . . . . . . . . . . . . . . . . . . . . Reprogrammed . | . . . . . . . . . . . . . . . . . . . . . . . Reused . | . . . . . . . . . . . . . . . . . . . . . . . Traps Extracted . | . . . . . . . . . . . . . . . . . . . . . . . Installed . | . . . . . . . . . . . . . . . . . . . . . . . Triggered . | . . . . . . . . . . . . . . . . . . . . . . . Machines | -11 -10 -10 -9 -9 -9 -8 -8 -7 -7 -7 -7 -6 -6 -6 -6 -6 -6 -6 -5 -5 -4 -4 ---------- Run | Yrd Mat Min Mat Sto Gar Mat Gar Fac Gar Fac Gar Fac Was Fac Ext Cet Arc Hub Fac Gar Fac Arm Machines Disabled 72 | . 2 . . 2 3 2 2 1 4 . 2 . . . 3 . 1 3 16 2 21 8 Max in Single Turn 17 | . 2 . . 1 1 1 1 1 1 . 1 . . . 1 . . 1 6 1 17 1 Garrison Relay 12 | . . . . . 3 . 1 . 4 . 2 . . . . . . . . 2 . . Phase Generator 1 | . . . . . . . . . 1 . . . . . . . . . . . . . Network Hub 1 | . . . . . . . . . . . . . . . . . . 1 . . . . Machines Repaired . | . . . . . . . . . . . . . . . . . . . . . . . Machines Dismantled 3 | . . . . 2 . . . . . . . . . . 1 . . . . . . . Machines Sabotaged 1 | . . . . . . . . . . . . . . . . . . 1 . . . . Overloaded Fab Kills . | . . . . . . . . . . . . . . . . . . . . . . . Hacking | -11 -10 -10 -9 -9 -9 -8 -8 -7 -7 -7 -7 -6 -6 -6 -6 -6 -6 -6 -5 -5 -4 -4 --------- Run | Yrd Mat Min Mat Sto Gar Mat Gar Fac Gar Fac Gar Fac Was Fac Ext Cet Arc Hub Fac Gar Fac Arm Machines Accessed 65 | . 8 . 10 2 1 6 3 3 . 2 1 . . 3 8 3 . 3 6 1 3 2 Terminals 50 | . 7 . 9 1 1 3 3 2 . . 1 . . 1 8 3 . 3 3 1 3 1 Fabricators . | . . . . . . . . . . . . . . . . . . . . . . . Repair Stations 2 | . . . . . . . . . . . . . . 1 . . . . 1 . . . Recycling Units 8 | . 1 . 1 . . 2 . . . 1 . . . 1 . . . . 1 . . 1 Scanalyzers . | . . . . . . . . . . . . . . . . . . . . . . . Garrison Access 5 | . . . . 1 . 1 . 1 . 1 . . . . . . . . 1 . . . Total Hacks 147 | . 21 . 26 2 1 14 4 5 . 4 1 . . 4 21 8 . 7 15 1 5 8 Successful 73 | . 15 . 14 2 1 8 . 2 . 3 1 . . . 7 2 . 2 11 1 1 3 Failed 74 | . 6 . 12 . . 6 4 3 . 1 . . . 4 14 6 . 5 4 . 4 5 Catastrophic 14 | . . . 1 . . 1 . 2 . . . . . 1 1 2 . 1 2 . 2 1 Database Lockouts . | . . . . . . . . . . . . . . . . . . . . . . . Manual 70 | . 16 . 19 . . 11 . 3 . 1 . . . 1 5 1 . 6 7 . . . Terminals 113 | . 19 . 24 1 1 6 4 4 . . 1 . . 1 21 8 . 7 7 1 5 3 Fabricators . | . . . . . . . . . . . . . . . . . . . . . . . Repair Stations 3 | . . . . . . . . . . . . . . 1 . . . . 2 . . . Recycling Units 23 | . 2 . 2 . . 7 . . . 3 . . . 2 . . . . 2 . . 5 Scanalyzers . | . . . . . . . . . . . . . . . . . . . . . . . Garrison Access 8 | . . . . 1 . 1 . 1 . 1 . . . . . . . . 4 . . . Terminal Hacks 26 | . 6 . 3 1 1 1 . . . . 1 . . . 6 2 . . 2 1 1 1 Record 1 | . . . . . . . . . . . . . . . . 1 . . . . . . Robot Analysis 2 | . 1 . . . . . . . . . . . . . 1 . . . . . . . Open Door 8 | . . . . 1 . . . . . . 1 . . . 5 1 . . . . . . Branch Access Points 3 | . . . . . . 1 . . . . . . . . . . . . 1 . 1 . Emergency Access Points 3 | . . . . . 1 . . . . . . . . . . . . . . 1 . 1 Terminal Index 2 | . 1 . 1 . . . . . . . . . . . . . . . . . . . Unreport Threat 1 | . 1 . . . . . . . . . . . . . . . . . . . . . Locate Traps 3 | . 1 . 1 . . . . . . . . . . . . . . . 1 . . . Zone Layout 3 | . 2 . 1 . . . . . . . . . . . . . . . . . . . Fabricator Hacks . | . . . . . . . . . . . . . . . . . . . . . . . Repair Station Hacks 2 | . . . . . . . . . . . . . . . . . . . 2 . . . Scan Component 1 | . . . . . . . . . . . . . . . . . . . 1 . . . Repair 1 | . . . . . . . . . . . . . . . . . . . 1 . . . Recycling Unit Hacks 9 | . 1 . 2 . . 2 . . . 1 . . . . . . . . 1 . . 2 Report Inventory 7 | . 1 . 1 . . 2 . . . 1 . . . . . . . . 1 . . 1 Retrieve Components 2 | . . . 1 . . . . . . . . . . . . . . . . . . 1 Scanalyzer . | . . . . . . . . . . . . . . . . . . . . . . . Garrison Access Hacks 6 | . . . . 1 . 1 . 1 . 1 . . . . . . . . 2 . . . Unlock Access 5 | . . . . 1 . 1 . 1 . 1 . . . . . . . . 1 . . . Coupler Status 1 | . . . . . . . . . . . . . . . . . . . 1 . . . Unauthorized Hacks 30 | . 8 . 9 . . 4 . 1 . 1 . . . . 1 . . 2 4 . . . Terminals 23 | . 7 . 9 . . 1 . 1 . . . . . . 1 . . 2 2 . . . Botnet 9 | . 2 . 2 . . 1 . 1 . . . . . . 1 . . . 2 . . . Skim 12 | . 5 . 7 . . . . . . . . . . . . . . . . . . . Sabotage 2 | . . . . . . . . . . . . . . . . . . 2 . . . . Fabricators . | . . . . . . . . . . . . . . . . . . . . . . . Repair Stations . | . . . . . . . . . . . . . . . . . . . . . . . Recycling Units 6 | . 1 . . . . 3 . . . 1 . . . . . . . . 1 . . . Mask 1 | . . . . . . 1 . . . . . . . . . . . . . . . . Tunnel 5 | . 1 . . . . 2 . . . 1 . . . . . . . . 1 . . . Scanalyzers . | . . . . . . . . . . . . . . . . . . . . . . . Garrison Access 1 | . . . . . . . . . . . . . . . . . . . 1 . . . Reprogram 1 | . . . . . . . . . . . . . . . . . . . 1 . . . Data Cores Recovered 2 | . . . . . . . . . . . . . . . 1 . . . 1 . . . Used 1 | . . . . . . . . . . . . . . . . . . . 1 . . . Hacking Detections 46 | . 6 . 7 1 . 4 3 3 . 2 . . . 3 6 3 . 2 2 . 2 2 Full Trace Events 6 | . . . 2 . . . . . . . . . . . 2 1 . 1 . . . . Feedback Events 2 | . . . 1 . . . . . . . . . . . . 1 . . . . . . Corruption 2 | . . . 1 . . . . . . . . . . . . 1 . . . . . . Feedback Blocked . | . . . . . . . . . . . . . . . . . . . . . . . Robot Schematics Acquired . | . . . . . . . . . . . . . . . . . . . . . . . Robots Built . | . . . . . . . . . . . . . . . . . . . . . . . Authchips . | . . . . . . . . . . . . . . . . . . . . . . . Time . | . . . . . . . . . . . . . . . . . . . . . . . Total Robot Build Rating . | . . . . . . . . . . . . . . . . . . . . . . . Part Schematics Acquired . | . . . . . . . . . . . . . . . . . . . . . . . Parts Built . | . . . . . . . . . . . . . . . . . . . . . . . Authchips . | . . . . . . . . . . . . . . . . . . . . . . . Time . | . . . . . . . . . . . . . . . . . . . . . . . Total Part Build Rating . | . . . . . . . . . . . . . . . . . . . . . . . Parts Repaired 1 | . . . . . . . . . . . . . . . . . . . 1 . . . Time 74 | . . . . . . . . . . . . . . . . . . . 74 . . . Parts Recycled . | . . . . . . . . . . . . . . . . . . . . . . . Recycled Matter . | . . . . . . . . . . . . . . . . . . . . . . . Retrieved Matter . | . . . . . . . . . . . . . . . . . . . . . . . Retrieved Components 11 | . . . 9 . . . . . . . . . . . . . . . . . . 2 Parts Scanalyzed . | . . . . . . . . . . . . . . . . . . . . . . . Part Schematics Acquired . | . . . . . . . . . . . . . . . . . . . . . . . Parts Damaged . | . . . . . . . . . . . . . . . . . . . . . . . Bothacking | -11 -10 -10 -9 -9 -9 -8 -8 -7 -7 -7 -7 -6 -6 -6 -6 -6 -6 -6 -5 -5 -4 -4 ------------ Run | Yrd Mat Min Mat Sto Gar Mat Gar Fac Gar Fac Gar Fac Was Fac Ext Cet Arc Hub Fac Gar Fac Arm Used RIF Installer 5 | . . . . . 1 . 1 . 1 . 1 . . . . . . . . 1 . . Hotswap 1 | . . . . . . . 1 . . . . . . . . . . . . . . . Command Fork 2 | . . . . . . . . . 1 . . . . . . . . . . 1 . . Watcher Feeds 1 | . . . . . . . . . . . 1 . . . . . . . . . . . Robots Hacked 9 | . . . . . . . . . . . . . . 3 1 1 . 3 . 1 . . Non-combat 2 | . . . . . . . . . . . . . . 2 . . . . . . . . Combat 7 | . . . . . . . . . . . . . . 1 1 1 . 3 . 1 . . Robot Hacks Applied 10 | . . . . . . . . . . . . . . 3 2 1 . 3 . 1 . . parse_system 2 | . . . . . . . . . . . . . . . 1 1 . . . . . . ignore_repairs 1 | . . . . . . . . . . . . . . 1 . . . . . . . . ignore_parts 1 | . . . . . . . . . . . . . . 1 . . . . . . . . formatsys_high 6 | . . . . . . . . . . . . . . 1 1 . . 3 . 1 . . Relay Couplers Released 49 | . . . . . 15 . 3 . 15 . 8 . . . . . . . . 8 . . Machine Destruction 46 | . . . . . 12 . 3 . 15 . 8 . . . . . . . . 8 . . Programmers 3 | . . . . . 3 . . . . . . . . . . . . . . . . . Attached 6 | . . . . . . . . . . . . . . 1 1 . . 2 . 1 1 . Fabnet Peak Effective % . | . . . . . . . . . . . . . . . . . . . . . . . Robots Rewired 27 | . . . . . . . . . 3 . 2 . . . 17 . . . . . . 5 Allies Hacked 2 | . . . . . . . . . . . 1 . . 1 . . . . . . . . Hacks Repelled . | . . . . . . . . . . . . . . . . . . . . . . . Allies | -11 -10 -10 -9 -9 -9 -8 -8 -7 -7 -7 -7 -6 -6 -6 -6 -6 -6 -6 -5 -5 -4 -4 -------- Run | Yrd Mat Min Mat Sto Gar Mat Gar Fac Gar Fac Gar Fac Was Fac Ext Cet Arc Hub Fac Gar Fac Arm Total Allies 50 | . . 2 . . . . . . 3 . 2 . . 1 26 5 . 3 . 3 . 5 Largest Group 16 | . . 2 2 . . . . . 3 . 2 . . 1 13 16 13 12 . 3 3 5 Highest-Rated Group 932 | . . 42 42 . . . . . 109 . 51 . . 41 525 932 719 753 . 190 190 204 Highest-Rated Ally 159 | . . 31 31 . . . . . 39 . 31 . . 41 159 159 96 96 . 89 89 48 Total Orders 4 | . . . . . . . . . . . . . . . . 4 . . . . . . STAY 1 | . . . . . . . . . . . . . . . . 1 . . . . . . FOLLOW 2 | . . . . . . . . . . . . . . . . 2 . . . . . . AID 1 | . . . . . . . . . . . . . . . . 1 . . . . . . Ally Attacks 448 | . . . 13 . . . . . 35 . 3 . . 2 149 71 22 89 . 10 29 25 Total Damage 10655 | . . . 167 . . . . . 552 . 53 . . 96 2508 1602 632 3746 . 191 569 539 Kills 71 | . . . 5 . . . . . 9 . . . . . 15 11 3 21 . 1 2 4 Allies Corrupted 8 | . . . . . . . . . . . . . . 1 . . . 4 . . . 3 Allies Melted . | . . . . . . . . . . . . . . . . . . . . . . . Intel | -11 -10 -10 -9 -9 -9 -8 -8 -7 -7 -7 -7 -6 -6 -6 -6 -6 -6 -6 -5 -5 -4 -4 ------- Run | Yrd Mat Min Mat Sto Gar Mat Gar Fac Gar Fac Gar Fac Was Fac Ext Cet Arc Hub Fac Gar Fac Arm Active Infowar (turns) 4524 | 6 401 . 713 . . . . . . . . . . . . . . . 329 660 512 1903 Optics 3404 | . . . . . . . . . . . . . . . . . . . 329 660 512 1903 Seismic 407 | 6 401 . . . . . . . . . . . . . . . . . . . . . Machine Analysis 713 | . . . 713 . . . . . . . . . . . . . . . . . . . Jamming 60 | . . . . . . . . . . . . . . . . . . . . . . 60 ECM 1 | . . . . . . . . . . . . . . . . . . . . . . 1 Robot Analysis Total 2 | . 1 . . . . . . . . . . . . . 1 . . . . . . . Derelict Logs Recovered . | . . . . . . . . . . . . . . . . . . . . . . . Drone Launches . | . . . . . . . . . . . . . . . . . . . . . . . Drone Recoveries . | . . . . . . . . . . . . . . . . . . . . . . . Exploration | -11 -10 -10 -9 -9 -9 -8 -8 -7 -7 -7 -7 -6 -6 -6 -6 -6 -6 -6 -5 -5 -4 -4 ------------- Run | Yrd Mat Min Mat Sto Gar Mat Gar Fac Gar Fac Gar Fac Was Fac Ext Cet Arc Hub Fac Gar Fac Arm Turns Passed 20330 | 331 920 629 1717 474 1149 1484 936 796 1337 430 1069 115 606 1286 1139 858 107 423 1403 660 512 1949 Spaces Moved 9283 | 114 485 460 875 249 539 586 381 335 579 218 377 64 354 572 471 361 39 205 611 315 239 854 Core 16 | 12 . . . . . . . 2 . . . . . . . . . . . . . 2 Treads 5872 | 102 314 . . . 3 158 160 187 536 218 377 64 354 572 471 361 39 205 611 315 239 586 Legs 266 | . . . . . . . . . . . . . . . . . . . . . . 266 Wheels 3129 | . 171 460 875 249 536 428 221 146 43 . . . . . . . . . . . . . Hover . | . . . . . . . . . . . . . . . . . . . . . . . Flight . | . . . . . . . . . . . . . . . . . . . . . . . Fastest Speed 50 | 50 130 130 105 145 145 125 170 130 160 162 162 162 160 160 160 160 160 160 160 160 160 105 Average Speed 163 | 158 156 130 139 145 165 187 196 203 180 169 177 162 160 162 162 161 160 160 166 164 160 147 Slowest Speed 1150 | 200 320 130 145 145 400 400 240 1150 243 242 242 162 163 240 165 240 160 160 240 240 160 250 Overloaded Moves . | . . . . . . . . . . . . . . . . . . . . . . . Propulsion Burnouts . | . . . . . . . . . . . . . . . . . . . . . . . Robots Hopped . | . . . . . . . . . . . . . . . . . . . . . . . Potential Cave-ins 4 | . . . . . . . . . . . . . . . 2 . . . . . 2 . Cave-ins Triggered . | . . . . . . . . . . . . . . . . . . . . . . . Exploration Rate (%) 46 | 7 81 90 88 38 48 63 34 12 54 6 43 2 94 18 73 79 70 31 23 49 13 53 Regions Visited 22 Branch Regions 7 Pre-discovered Areas 10 | . 4 . 2 . . 2 . . . 1 . . . . . . . . 1 . . . Known Exits Taken 6 | . . . . 1 . 1 . 1 . 1 . . . . . . . . 1 . 1 . Unknown Exits Taken 9 | 1 1 1 1 . . . . . . . . . . 1 1 1 1 1 . . . . Scrap Searched . | . . . . . . . . . . . . . . . . . . . . . . . Spaces Dug 79 | . . . . . 17 1 13 . 8 . 17 . . . . . . . 6 5 2 10 Terrain Destroyed 511 | . 1 . . . 17 1 13 . 8 . 17 . . 8 9 11 1 22 281 5 96 21 Melee 70 | . . . . . 17 1 13 . 8 . 17 . . . . . . . . 5 . 9 Projectile 155 | . . . . . . . . . . . . . . 1 2 11 1 22 101 . 14 3 AOE 285 | . 1 . . . . . . . . . . . . 7 7 . . . 180 . 82 8 Terrain Rammed . | . . . . . . . . . . . . . . . . . . . . . . . Walls Destroyed . | . . . . . . . . . . . . . . . . . . . . . . . Machines Disabled . | . . . . . . . . . . . . . . . . . . . . . . . Actions | -11 -10 -10 -9 -9 -9 -8 -8 -7 -7 -7 -7 -6 -6 -6 -6 -6 -6 -6 -5 -5 -4 -4 --------- Run | Yrd Mat Min Mat Sto Gar Mat Gar Fac Gar Fac Gar Fac Was Fac Ext Cet Arc Hub Fac Gar Fac Arm Total 12227 | 176 564 477 1217 301 645 800 462 400 726 248 602 76 383 765 750 581 71 249 819 386 320 1209 Wait 1057 | . 26 8 199 13 . 97 . 5 8 13 85 10 . 84 99 162 21 8 110 26 35 48 Move 9266 | 113 484 459 874 248 538 586 380 335 578 218 376 64 353 571 470 360 38 204 611 314 238 854 Hop . | . . . . . . . . . . . . . . . . . . . . . . . Pick Up 129 | 5 2 1 29 3 5 5 5 10 7 2 4 . 2 7 7 4 . . 7 5 9 10 Fast Attach 113 | 7 1 . 10 . . 10 . 2 2 1 2 . 6 2 2 3 1 . 2 2 3 57 Attach 64 | . 3 1 4 . 4 5 2 1 1 1 2 2 . 8 2 2 . 2 3 4 7 10 Detach 25 | . 1 . 4 . . 1 . . 1 . . . 3 1 . 2 . 2 . . . 10 Swap 155 | . 1 . 7 5 6 11 10 11 17 . 16 . 3 7 10 7 2 7 11 3 3 18 Drop 128 | . . . 19 3 1 6 5 14 15 1 6 . 11 2 4 12 3 . 3 1 3 19 Fire 777 | 51 45 7 70 15 21 76 15 22 38 12 42 . 5 80 35 29 6 25 71 19 18 75 Melee 273 | . . . . . 59 2 43 . 34 . 39 . . . . . . . . 12 . 84 Ram 1 | . . 1 . . . . . . . . . . . . . . . . . . . . Kick . | . . . . . . . . . . . . . . . . . . . . . . . Crush 14 | . 1 . 1 . . 1 . . . . . . . 3 2 . . 1 1 . 4 . Escape Stasis 15 | . . . . . 11 . 2 . 2 . . . . . . . . . . . . . Rewire 188 | . . . . . . . . . 23 . 30 . . . 111 . . . . . . 24 Trap . | . . . . . . . . . . . . . . . . . . . . . . . Miscellaneous 22 | . . . . 14 . . . . . . . . . . 8 . . . . . . . Route ------- -11/Scrapyard -10/Materials (discovered 6 exits: *Mat x3 / [*Min x2] / [*Sub]) -10/Mines (discovered 2 exits: *Mat x2) -9/Materials (discovered 7 exits: *Mat x3 / *Min x2 / *Sto x2) -9/Storage (discovered 3 exits: Mat / Rec / Gar) -9/Garrison (discovered 3 exits: *Mat x3) -8/Materials (discovered 4 exits: *Fac x3 / Gar) -8/Garrison -7/Factory (discovered 2 exits: [*Fac] / Gar) -7/Garrison -7/Factory -7/Garrison -6/Factory -6/Waste -6/Factory -6/Extension (discovered 2 exits: *Fac / *Cet) -6/Cetus (discovered 2 exits: *Fac / [*Arc]) -6/Archives -6/Hub_04(d) (discovered 2 exits: *Fac x2) -5/Factory (discovered 4 exits: *Fac / Upp x2 / Gar) -5/Garrison -4/Factory (discovered 3 exits: Upp x2 / *Arm) -4/Armory History --------- Turn | Location | Event 53 | -11/Scrapyard | Discovered new exit (range 14) 332 | -11/Scrapyard | Entered Materials 333 | -10/Materials | Met a group of wandering Federalists 347 | -10/Materials | Build established: Mutant 450 | -10/Materials | Discovered new exit (range 6) 622 | -10/Materials | Discovered new exit (range 8) 779 | -10/Materials | Discovered new exit (range 11) 996 | -10/Materials | Discovered new exit (range 14) 1058 | -10/Materials | Core integrity fell below 50% 1116 | -10/Materials | Discovered new exit (range 5) 1131 | -10/Materials | Discovered new exit (range 16) 1150 | -10/Materials | Learned Storage trap positions 1186 | -10/Materials | Learned location of 2 exits from Materials 1225 | -10/Materials | Learned Storage trap positions 1230 | -10/Materials | Learned 4 Recycling zone layouts 1236 | -10/Materials | Learned location of Recycling (-9) 1252 | -10/Materials | Learned Storage security intel 1252 | -10/Materials | Entered Mines 1354 | -10/Mines | Discovered new exit (range 13) 1630 | -10/Mines | Discovered new exit (range 7) 1881 | -10/Mines | Entered Materials 1881 | -9/Materials | Accompanied by 2 allies 1881 | -9/Materials | Evolved 2 slots: Utility x1, Weapon x1 1882 | -9/Materials | Identified exit to Mines 1882 | -9/Materials | Identified exit to Materials 1886 | -9/Materials | Led the pair of lost Derelicts to an unsafe place 2085 | -9/Materials | Discovered exit to Mines (range 16) 2214 | -9/Materials | Discovered exit to Materials (range 5) 2300 | -9/Materials | Build established: Skirmisher 2708 | -9/Materials | Discovered new exit (range 13) 3006 | -9/Materials | Learned location of 1 exit from Storage 3006 | -9/Materials | Build established: Gunner 3082 | -9/Materials | Core integrity fell below 50% 3140 | -9/Materials | Discovered new exit (range 4) 3284 | -9/Materials | Discovered exit to Materials (range 5) 3447 | -9/Materials | Learned location of Zion (-6) 3459 | -9/Materials | Learned 4 Recycling zone layouts 3481 | -9/Materials | Learned 4 Materials zone layouts 3598 | -9/Materials | Entered Storage 3599 | -9/Storage | Identified exit to Recycling 3600 | -9/Storage | Loaded intel: 21 trap records 3784 | -9/Storage | Identified exit to Garrison 4072 | -9/Storage | Entered Garrison 4254 | -9/Garrison | Triggered checkpoint 4280 | -9/Garrison | Garrison Relay disabled 4295 | -9/Garrison | Garrison Relay disabled 4568 | -9/Garrison | Triggered checkpoint 4676 | -9/Garrison | Triggered checkpoint 4713 | -9/Garrison | Garrison Relay disabled 4772 | -9/Garrison | Discovered exit to Materials (range 13) 4888 | -9/Garrison | Installed Relay Interface Framework 4894 | -9/Garrison | Build established: Mutant 5221 | -9/Garrison | Entered Materials 5221 | -8/Materials | Evolved 2 slots: Propulsion x1, Utility x1 5892 | -8/Materials | Build established: Tank 5945 | -8/Materials | Discovered new exit (range 16) 6454 | -8/Materials | Discovered new exit (range 11) 6687 | -8/Materials | Discovered new exit (range 15) 6705 | -8/Materials | Identified exit to Garrison 6705 | -8/Materials | Entered Garrison 7197 | -8/Garrison | Triggered checkpoint 7279 | -8/Garrison | Expanded RIF knowledge: Hotswap 7301 | -8/Garrison | Garrison Relay disabled 7495 | -8/Garrison | Discovered new exit (range 13) 7641 | -8/Garrison | Entered Factory 7641 | -7/Factory | Evolved 2 slots: Propulsion x1, Weapon x1 7821 | -7/Factory | Allied Derelicts emerged from ambush trap array 7960 | -7/Factory | Build established: Bothacker-Tank 8393 | -7/Factory | Discovered new exit (range 11) 8437 | -7/Factory | Identified exit to Garrison 8437 | -7/Factory | Entered Garrison 8585 | -7/Garrison | Destroyed 8 combat bots 8813 | -7/Garrison | Triggered checkpoint 8864 | -7/Garrison | Garrison Relay disabled 8912 | -7/Garrison | Garrison Relay disabled 9163 | -7/Garrison | Triggered checkpoint 9326 | -7/Garrison | Triggered checkpoint 9422 | -7/Garrison | Met a derelict Sapper fleeing the area 9425 | -7/Garrison | Phase Generator disabled 9427 | -7/Garrison | Garrison Relay disabled 9453 | -7/Garrison | Discovered new exit (range 8) 9551 | -7/Garrison | Expanded RIF knowledge: Command Fork 9720 | -7/Garrison | Garrison Relay disabled 9774 | -7/Garrison | Entered Factory 10174 | -7/Factory | First assault squad dispatched 10204 | -7/Factory | Identified exit to Garrison 10204 | -7/Factory | Entered Garrison 10274 | -7/Garrison | Triggered checkpoint 10316 | -7/Garrison | Garrison Relay disabled 10739 | -7/Garrison | System corruption reached 10% 10876 | -7/Garrison | Triggered checkpoint 10886 | -7/Garrison | Triggered checkpoint 10952 | -7/Garrison | Garrison Relay disabled 11024 | -7/Garrison | Discovered new exit (range 15) 11040 | -7/Garrison | Expanded RIF knowledge: Watcher Feeds 11140 | -7/Garrison | Build established: Bothacker-Gunner 11273 | -7/Garrison | Entered Factory 11273 | -6/Factory | Evolved 2 slots: Utility x2 11388 | -6/Factory | Sucked down chute 11388 | -6/Factory | Entered Waste 11388 | -6/Waste | The area was eerily silent 11723 | -6/Waste | Discovered new exit (range 11) 11759 | -6/Waste | Build established: Bothacker-Tank 11994 | -6/Waste | Entered Factory 12786 | -6/Factory | Lost 5 parts (2n2u1w) 13224 | -6/Factory | Discovered new exit (range 15) 13280 | -6/Factory | Entered Extension 13478 | -6/Extension | Rescued a captive Derelict 13748 | -6/Extension | Spotted B-75 Beast 13755 | -6/Extension | Disrupted transfer network 13769 | -6/Extension | Spotted B-75 Beast 13789 | -6/Extension | Allies destroyed B-75 Beast 13796 | -6/Extension | Destroyed B-75 Beast 13826 | -6/Extension | Lost 5 allies 13872 | -6/Extension | Rescued A7 13994 | -6/Extension | Rescued a captive Derelict 13995 | -6/Extension | Rescued a captive Derelict 14011 | -6/Extension | Rescued a captive Derelict 14012 | -6/Extension | Rescued a captive Derelict 14126 | -6/Extension | Build established: Scavenger-Tank 14161 | -6/Extension | Rescued a captive Derelict 14258 | -6/Extension | Rescued a captive Derelict 14339 | -6/Extension | Discovered new exit (range 10) 14341 | -6/Extension | Discovered new exit (range 6) 14419 | -6/Extension | Disrupted transfer network 14419 | -6/Extension | Entered Cetus 14419 | -6/Cetus | Accompanied by 13 allies (A7) 14424 | -6/Cetus | Acquired a Cetus Manufacturing Module code from A7 14439 | -6/Cetus | Spotted Cetus Guard 14439 | -6/Cetus | Spotted Cetus Guard 14442 | -6/Cetus | Spotted Cetus Guard 14442 | -6/Cetus | Spotted Cetus Guard 14451 | -6/Cetus | Allies destroyed Cetus Guard 14460 | -6/Cetus | Allies destroyed Cetus Guard 14468 | -6/Cetus | Allies destroyed Cetus Guard 14469 | -6/Cetus | Allies destroyed Cetus Guard 14622 | -6/Cetus | Started Cetus Manufacturing Module 14647 | -6/Cetus | Manufactured an Enhanced Grunt 14672 | -6/Cetus | Manufactured an Enhanced Grunt 14697 | -6/Cetus | Manufactured an Enhanced Grunt 14722 | -6/Cetus | Manufactured an Enhanced Grunt 14747 | -6/Cetus | Manufactured an Enhanced Grunt 14775 | -6/Cetus | Escorted A7 to Cetus Mainframe 14884 | -6/Cetus | Discovered new exit (range 16) 14927 | -6/Cetus | Spotted Cetus Guard 14927 | -6/Cetus | Spotted Cetus Guard 14932 | -6/Cetus | Spotted Cetus Guard 14934 | -6/Cetus | Destroyed Cetus Guard 14940 | -6/Cetus | Spotted Cetus Guard 14945 | -6/Cetus | Allies destroyed Cetus Guard 14954 | -6/Cetus | Allies destroyed Cetus Guard 14973 | -6/Cetus | Discovered new exit (range 16) 14987 | -6/Cetus | Met Revision 17 15016 | -6/Cetus | Build established: Commander-Tank 15169 | -6/Cetus | Security sweep announced 15170 | -6/Cetus | Murdered A7 15174 | -6/Cetus | Extracted ID and sensor layout for unrecognized location from A7's data core 15277 | -6/Cetus | Entered Archives 15277 | -6/Archives | Accompanied by 13 allies 15334 | -6/Archives | Discovered new exit (range 16) 15384 | -6/Archives | Entered Hub_04(d) 15384 | -6/Hub_04(d) | Accompanied by 11 allies 15513 | -6/Hub_04(d) | Lost 4 allies 15622 | -6/Hub_04(d) | Build established: Scavenger-Tank 15679 | -6/Hub_04(d) | Discovered new exit (range 8) 15766 | -6/Hub_04(d) | Discovered new exit (range 14) 15790 | -6/Hub_04(d) | Network Hub disabled 15794 | -6/Hub_04(d) | Spotted Lightning 15794 | -6/Hub_04(d) | Spotted Lightning 15794 | -6/Hub_04(d) | Spotted Lightning 15807 | -6/Hub_04(d) | Entered Factory 15807 | -5/Factory | Evolved 2 slots: Utility x2 15837 | -5/Factory | Lost 7 allies 15939 | -5/Factory | Found Powered Armor 15942 | -5/Factory | Found Powered Armor 15946 | -5/Factory | Found Powered Armor 16107 | -5/Factory | First assault squad dispatched 16581 | -5/Factory | Repaired Quantum Reactor 16911 | -5/Factory | Discovered new exit (range 12) 16979 | -5/Factory | Identified exit to Upper Caves 17095 | -5/Factory | Lost 3 parts (1n1u1w) 17210 | -5/Factory | Identified exit to Garrison 17210 | -5/Factory | Entered Garrison 17254 | -5/Garrison | Expanded RIF knowledge: Command Fork 17332 | -5/Garrison | Garrison Relay disabled 17510 | -5/Garrison | Triggered checkpoint 17581 | -5/Garrison | Destroyed 8 combat bots 17619 | -5/Garrison | Found embedded Infiltrators 17644 | -5/Garrison | Build established: Bothacker-Tank 17676 | -5/Garrison | Discovered new exit (range 11) 17748 | -5/Garrison | Triggered checkpoint 17772 | -5/Garrison | Garrison Relay disabled 17870 | -5/Garrison | Entered Factory 17870 | -4/Factory | Accompanied by 3 allies 17870 | -4/Factory | Evolved 2 slots: Utility x1, Weapon x1 18048 | -4/Factory | Identified exit to Upper Caves 18048 | -4/Factory | Identified exit to Armory 18120 | -4/Factory | First assault squad dispatched 18225 | -4/Factory | Garrison activated, responded to threat 18257 | -4/Factory | Spotted B-86 Titan 18382 | -4/Factory | Entered Armory 18384 | -4/Armory | Lost 9 parts (1p1n4u3w) 18651 | -4/Armory | Build established: Scavenger-Mutant 18831 | -4/Armory | Found Prototype Device 18831 | -4/Armory | Identified Exp. ECM Suite 18837 | -4/Armory | Found Prototype Processor 18837 | -4/Armory | Identified Exp. Targeting Computer 18970 | -4/Armory | Lost 3 allies 19046 | -4/Armory | Destroyed 8 combat bots 19154 | -4/Armory | Lost 4 parts (1p1n2u) 19492 | -4/Armory | Build established: Scavenger-Tank 19570 | -4/Armory | Destroyed 10 combat bots 19589 | -4/Armory | Lost 3 parts (1p1n1u) 19632 | -4/Armory | First assault squad dispatched 19760 | -4/Armory | Lost 7 parts (1p1n1u4w) 19762 | -4/Armory | Found Prototype Processor 19762 | -4/Armory | Identified Exp. Melee Analysis Suite 19778 | -4/Armory | Found Prototype Hackware 19778 | -4/Armory | Identified Exp. System Shield 19781 | -4/Armory | Found Prototype Device 19781 | -4/Armory | Identified Adv. EM Shield 19838 | -4/Armory | Found Exp. System Shield 19925 | -4/Armory | Lost 3 parts (1n1u1w) 20039 | -4/Armory | Core integrity fell below 50% 20043 | -4/Armory | System corruption reached 10% 20232 | -4/Armory | Core integrity fell below 20% 20280 | -4/Armory | Lost 9 parts (1p2n5u1w) 20331 | -4/Armory | Destroyed by L-61 Swordsman with Power Sword Last Messages --------------- 20248_ X-77 Beamer Adv. VSS Leg severed. 20249_ Exp. Heat Sink destroyed. 20251_ System corrupted: Energy discharge (-16). 20251_ X-77 Beamer destroyed. 20255_ Acquired Propulsion Shielding. 20257_ Acquired Segregator. 20259_ Acquired 20 matter. 20264_ Acquired Graphene Brace. 20265_ Dropped Graphene Brace. 20269_ Acquired Lgt. Antimatter Reactor. 20272_ System corrupted: Heat flow error (+206). 20272_ Acquired 30 matter. 20290_ GSKKBZSHFHLFSSIVHIW 20315_ System corrupted: Component data lost. 20327_ Lgt. Antimatter Reactor lost to overload. 20327_ L-61 Swordsman Microactuators blown off. 20327_ L-61 Swordsman Flexi-carbon Leg blown off. 20327_ Vibroblade follow-up attack on L-61 Swordsman. 20328_ Adv. Myomer Leg destroyed. [Achievement: Punisher] Map ----- +----------------------------------------------------+ | ????????????????????????????????????????? | | ????????????????????????????????????????? | | ????????????????????????????????????????? | | ????????????????????????????????????????? | | ????????????????????????????????????????? | | ????????????????????????????????????????? | | ????????????????????????????????????????? | | ????????????????????????????????????????? | | ????????????????????????????????????????? | | ????????????????????????????????????????? | | ????????????????????????????????????????? | | ????????????????????????????????????????? | | ??????????????????????##############????? | | ??????????????????????# ###### | | ??????????????????????# + | | ??????????????????????# """"""" # | | ???????????##+######### """"""" # " | | ???????????# # / "%" | | ???????????# # ###### | | ???????????# ]]] # #????? | | ???????????# ]]] # #????? | | ???????????# ]]] # #????? | | ???????????# # #????? | | ???????????# # #????? | | ???????????# # #????? | | ???????????# @! ##++##########????? | | ?????????########l##### #????????????? | | ???????# =g #????????????? | | ???????# #????????????? | | ???????# ???????? | | ???????+ """"" ##??????? | | ???????# """"" """"" #???????? | | ???????# """"" """"" #???????? | | ???????# # """"" """"" #???????? | | ???????#?# #???????? | | ?????????# #???????? | | ?????????# """"" #???????? | | ?????????# """"" #???????? | | ????????? """"" +???????? | | ???????? ? ## ???????????? | | ??????????? ?# ????????????? | | ??????????? ?# ????????????? | | ?????????? ?# ???????????? | | ??????????###### ?# """ ???????????? | | ???????????????# ??# "F" ???????????? | | ???????????????# ??# " ???????????? | | ???????????????# ??# "?? ????????????? | | ???????????????????# "????????????????? | | ???????????????????? ?????????????????? | | ????????????????????????????????????????? | +----------------------------------------------------+ Best States ------------- Heat Dissipation 74 Energy Generation 25 Energy Capacity 570 Matter Stores 300 Matter Capacity 300 Sight Range 22 Terrain Scan Density 10 Jamming Range 16 Additional Mass Support 12 Armor Coverage 1250 Propulsion Shielding 33 Weapon Shielding 90 Weapon Cycling 15 Evasion (%) 55 Targeting Accuracy 32 Melee Accuracy 12 Target Analysis 6 Recoil Reduction 4 Kinecelleration 40 Offensive Hacking 10 Defensive Hacking 16 Relay Coupler Types 2 Relay Coupler Value 52 Authchip Count 1 Item Schematics ----------------- None Robot Schematics ------------------ None Fabricated ------------ Nothing Repaired ---------- Quantum Reactor | 19% | -5/Factory Alien Tech Used ----------------- None Achievements -------------- Gun Specialist Punisher Challenges ------------ None Game ------ Seed ImpactCommCleaver Manual? 0 Play Time 02:47:15 Cumulative 205.7 hours Start 2025.07.27 @ 19:46:33 End 2025.07.27 @ 22:40:10 Sessions 1 Manual Loads 0 Difficulty Rogue Special Mode None Game No. 216 Rogue 216 Adventurer 0 Explorer 0 Win Type - Total 4 Types 1/0/1/1/0/0/0/0/0/1 Lore% 71 Gallery% 67 Achievement% 62 Wizard Run 0 Options --------- Layout 1 ASCII 0 Keyboard 1 Movement Numpad Keybinds 0 Fullscreen 1 Font 32/SmallcapsGlow Map View 77x35 Zoom Use 0% Tactical HUD 1 Map Filters NONE Filters NONE Steam 1 RUN: 92e8e3e8-5ad2-4a07-9d52-60f0f8bdaa5f